fUST/lending_fUST_20250812
["ID","MTS","AMOUNT","RATE_DAILY","PERIOD"]
[378682609,1754958652986,-460.0,0.00019623,2]
[378682610,1754958652995,-460.0,0.00019623,2]
[378682611,1754958653006,-460.0,0.00019623,2]
[378682612,1754958653015,-460.0,0.00019623,2]
[378682613,1754958653024,-460.0,0.00019623,2]
[378682614,1754958653035,-460.0,0.00019623,2]
[378682615,1754958653045,-460.0,0.00019623,2]
[378682616,1754958653054,-460.0,0.00019623,2]
[378682617,1754958653064,-460.0,0.00019623,2]
[378682618,1754958653075,-460.0,0.00019623,2]
[378682619,1754958653084,-460.0,0.00019623,2]
[378682620,1754958653093,-517.09950698,0.00019623,2]
[378682621,1754958653103,-460.0,0.00019623,2]
[378682622,1754958653112,-460.0,0.00019623,2]
[378682623,1754958653122,-460.0,0.00019623,2]
[378682624,1754958653131,-460.0,0.00019623,2]
[378682625,1754958653140,-467.26458395,0.00019623,2]
[378682626,1754958653149,-460.0,0.00019623,2]
[378682627,1754958653159,-462.07707354,0.00019623,2]
[378682628,1754958653168,-460.0,0.00019623,2]
[378682629,1754958653177,-460.0,0.00019623,2]
[378682630,1754958653186,-470.91817191,0.00019623,2]
[378682631,1754958653196,-460.0,0.00019623,2]
[378682632,1754958653205,-460.0,0.00019623,2]
[378682633,1754958653215,-1306.28,0.00019623,2]
[378682634,1754958653225,-460.0,0.00019623,2]
[378682635,1754958653544,-460.0,0.00019623,2]
[378682636,1754958653570,-168.37926051,0.00019623,2]
[378682637,1754958653586,-604.70961104,0.00019623,2]
[378682638,1754958653597,-529.02,0.00019623,2]
[378682639,1754958653607,-608.38242068,0.00019623,2]
[378682640,1754958653616,-460.0,0.00019623,2]
[378682641,1754958653625,-460.0,0.00019623,2]
[378682642,1754958653635,-460.0,0.00019623,2]
[378682643,1754958653644,-460.0,0.00019623,2]
[378682644,1754958653653,-770.91,0.00019623,2]
[378682645,1754958653662,-694.52,0.00019623,2]
[378682646,1754958653671,-201.56951719,0.00019623,2]
[378682647,1754958653681,-723.93,0.00019623,2]
[378682648,1754958653690,-460.0,0.00019623,2]
[378682649,1754958653700,-460.0,0.00019623,2]
[378682650,1754958653709,-460.0,0.00019623,2]
[378682651,1754958653718,-460.0,0.00019623,2]
[378682652,1754958653727,-460.0,0.00019623,2]
[378682653,1754958653736,-460.0,0.00019623,2]
[378682654,1754958653746,-460.0,0.00019623,2]
[378682655,1754958653755,-484.78552915,0.00019623,2]
[378682656,1754958653764,-460.0,0.00019623,2]
[378682657,1754958653773,-460.0,0.00019623,2]
[378682658,1754958653783,-460.0,0.00019623,2]
[378682659,1754958653795,-516.85,0.00019623,2]
[378682660,1754958653805,-460.0,0.00019623,2]
[378682661,1754958653814,-460.0,0.00019623,2]
[378682662,1754958653823,-460.0,0.00019623,2]
[378682663,1754958653832,-460.0,0.00019623,2]
[378682664,1754958653842,-584.54442835,0.00019623,2]
[378682665,1754958653851,-460.0,0.00019623,2]
[378682666,1754958653861,-687.7,0.00019623,2]
[378682667,1754958653870,-460.0,0.00019623,2]
[378682668,1754958653887,-478.38,0.00019623,2]
[378682669,1754958653896,-211.94422838,0.00019623,2]
[378682670,1754958653906,-582.02,0.00019623,2]
[378682671,1754958653915,-460.0,0.00019623,2]
[378682672,1754958653925,-460.0,0.00019623,2]
[378682673,1754958653934,-460.0,0.00019623,2]
[378682674,1754958653944,-562.62,0.00019623,2]
[378682675,1754958653953,-460.0,0.00019623,2]
[378682676,1754958653962,-460.0,0.00019623,2]
[378682677,1754958653972,-460.0,0.00019623,2]
[378682678,1754958653981,-460.0,0.00019623,2]
[378682679,1754958653990,-460.0,0.00019623,2]
[378682680,1754958653999,-460.0,0.00019623,2]
[378682681,1754958654008,-460.0,0.00019623,2]
[378682682,1754958654018,-460.0,0.00019623,2]
[378682683,1754958654027,-460.0,0.00019623,2]
[378682684,1754958654036,-460.0,0.00019623,2]
[378682685,1754958654047,-549.14,0.00019623,2]
[378682686,1754958654056,-151.0,0.00019623,2]
[378682687,1754958654065,-151.0,0.00019623,2]
[378682688,1754958654074,-588.98590383,0.00019623,2]
[378682689,1754958654083,-460.0,0.00019623,2]
[378682690,1754958654095,-575.56,0.00019623,2]
[378682691,1754958654104,-460.0,0.00019623,2]
[378682692,1754958654115,-460.0,0.00019623,2]
[378682693,1754958654124,-460.0,0.00019623,2]
[378682694,1754958654134,-460.0,0.00019623,2]
[378682695,1754958654143,-2266.72,0.00019623,2]
[378682696,1754958654151,-554.28,0.00019623,2]
[378682697,1754958654162,-460.0,0.00019623,2]
[378682698,1754958654171,-460.0,0.00019623,2]
[378682699,1754958654180,-460.0,0.00019623,2]
[378682700,1754958654189,-460.0,0.00019623,2]
[378682701,1754958654198,-1298.74,0.00019623,2]
[378682702,1754958654207,-460.0,0.00019623,2]
[378682703,1754958654217,-460.0,0.00019623,2]
[378682704,1754958654226,-460.0,0.00019623,2]
[378682705,1754958654235,-460.0,0.00019623,2]
[378682706,1754958654245,-460.0,0.00019623,2]
[378682707,1754958654253,-460.0,0.00019623,2]
[378682708,1754958654262,-460.0,0.00019623,2]
[378682709,1754958654271,-460.0,0.00019623,2]
[378682710,1754958654281,-460.0,0.00019623,2]
[378682711,1754958654290,-460.0,0.00019623,2]
[378682712,1754958654299,-460.0,0.00019623,2]
[378682713,1754958654308,-460.0,0.00019623,2]
[378682714,1754958654317,-460.0,0.00019623,2]
[378682715,1754958654328,-460.0,0.00019623,2]
[378682716,1754958654337,-460.0,0.00019623,2]
[378682717,1754958654346,-1193.42,0.00019623,2]
[378682718,1754958654356,-460.0,0.00019623,2]
[378682719,1754958654365,-460.0,0.00019623,2]
[378682720,1754958654374,-3925.4,0.00019623,2]
[378682721,1754958654384,-461.68189417,0.00019623,2]
[378682722,1754958654393,-460.0,0.00019623,2]
[378682723,1754958654401,-460.0,0.00019623,2]
[378682724,1754958654411,-460.0,0.00019623,2]
[378682725,1754958654420,-885.4,0.00019623,2]
[378682726,1754958654429,-460.0,0.00019623,2]
[378682727,1754958654439,-460.0,0.00019623,2]
[378682728,1754958654457,-162.92290541,0.00019623,2]
[378682729,1754958654477,-460.0,0.00019623,2]
[378682730,1754958654497,-460.0,0.00019623,2]
[378682731,1754958654507,-460.0,0.00019623,2]
[378682732,1754958654516,-460.0,0.00019623,2]
[378682733,1754958654526,-460.0,0.00019623,2]
[378682734,1754958654535,-400.0,0.00019625,3]
[378682735,1754958654545,-151.0,0.00019625,2]
[378682736,1754958654553,-151.0,0.00019625,2]
[378682737,1754958654562,-151.0,0.00019625,2]
[378682738,1754958654571,-151.0,0.00019625,2]
[378682739,1754958654581,-294.26299,0.00019625,2]
[378682740,1754958654590,-1864.0,0.00019664,2]
[378682741,1754958654599,-1300.0,0.00019712,2]
[378682742,1754958654608,-322.2,0.00019713,2]
[378682743,1754958654618,-1000.0,0.00019721,2]
[378682744,1754958654627,-1000.0,0.00019721,2]
[378682745,1754958654636,-484.846207,0.00019721,2]
[378682746,1754958654646,-484.846207,0.00019721,2]
[378682747,1754958654655,-207.24806,0.00019721,2]
[378682748,1754958654664,-200.0,0.00019724,2]
[378682749,1754958654673,-151.0,0.00019724,2]
[378682750,1754958654683,-151.0,0.00019724,2]
[378682751,1754958654692,-460.0,0.00019724,2]
[378682752,1754958654701,-1073.91,0.00019724,2]
[378682753,1754958654710,-460.0,0.00019724,2]
[378682754,1754958654720,-151.0,0.00019724,2]
[378682755,1754958654729,-460.0,0.00019724,2]
[378682756,1754958654738,-460.0,0.00019724,2]
[378682757,1754958654747,-151.0,0.00019724,2]
[378682758,1754958654756,-460.0,0.00019724,2]
[378682759,1754958654766,-151.0,0.00019724,2]
[378682760,1754958654775,-239.303506,0.00019724,2]
[378682761,1754958654784,-460.0,0.00019724,2]
[378682762,1754958654795,-1605.17,0.00019724,2]
[378682763,1754958654806,-326.26838234,0.00019724,2]
[378682764,1754958654815,-1216.18,0.00019724,2]
[378682765,1754958654824,-1689.44,0.00019724,2]
[378682766,1754958654834,-791.13,0.00019724,2]
[378682767,1754958654843,-460.0,0.00019724,2]
[378682768,1754958654852,-460.0,0.00019724,2]
[378682769,1754958654861,-1028.6,0.00019724,2]
[378682770,1754958654872,-460.0,0.00019724,2]
[378682771,1754958654882,-151.0,0.00019724,2]
[378682772,1754958654891,-460.0,0.00019724,2]
[378682773,1754958654900,-895.11,0.00019724,2]
[378682774,1754958654909,-151.0,0.00019724,2]
[378682775,1754958654918,-1705.96,0.00019724,2]
[378682776,1754958654928,-460.0,0.00019724,2]
[378682777,1754958654937,-724.75,0.00019724,2]
[378682778,1754958654946,-460.0,0.00019724,2]
[378682779,1754958654956,-460.0,0.00019724,2]
[378682780,1754958654965,-151.0,0.00019724,2]
[378682781,1754958654974,-1088.83,0.00019724,2]
[378682782,1754958654983,-460.0,0.00019724,2]
[378682783,1754958654992,-462.67,0.00019724,2]
[378682784,1754958655001,-460.0,0.00019724,2]
[378682785,1754958655011,-770.93,0.00019724,2]
[378682786,1754958655020,-151.0,0.00019724,2]
[378682787,1754958655030,-151.0,0.00019724,2]
[378682788,1754958655040,-641.5841,0.00019724,2]
[378682789,1754958655050,-641.5841,0.00019724,2]
[378682790,1754958655059,-646.65,0.00019724,2]
[378682791,1754958655068,-460.0,0.00019724,2]
[378682792,1754958655078,-151.0,0.00019724,2]
[378682793,1754958655087,-460.0,0.00019724,2]
[378682794,1754958655097,-460.0,0.00019724,2]
[378682795,1754958655108,-587.53,0.00019724,2]
[378682796,1754958655117,-911.52,0.00019724,2]
[378682797,1754958655126,-1020.95,0.00019724,2]
[378682798,1754958655135,-697.96,0.00019724,2]
[378682799,1754958655144,-460.0,0.00019724,2]
[378682800,1754958655153,-460.0,0.00019724,2]
[378682801,1754958655163,-460.0,0.00019724,2]
[378682802,1754958655172,-3424.47,0.00019724,2]
[378682803,1754958655181,-151.0,0.00019724,2]
[378682804,1754958655190,-626.38,0.00019724,2]
[378682805,1754958655199,-228.517911,0.00019724,2]
[378682806,1754958655209,-232.5585651,0.00019724,2]
[378682807,1754958655218,-460.0,0.00019724,2]
[378682808,1754958655227,-460.0,0.00019724,2]
[378682809,1754958655236,-460.0,0.00019724,2]
[378682810,1754958655245,-701.13,0.00019724,2]
[378682811,1754958655254,-499.40042012,0.00019724,2]
[378682812,1754958655263,-460.0,0.00019724,2]
[378682813,1754958655272,-1557.11,0.00019724,2]
[378682814,1754958655281,-460.0,0.00019724,2]
[378682815,1754958655290,-482.78,0.00019724,2]
[378682816,1754958655299,-908.04,0.00019724,2]
[378682817,1754958655309,-460.0,0.00019724,2]
[378682818,1754958655319,-460.0,0.00019724,2]
[378682819,1754958655329,-460.0,0.00019724,2]
[378682820,1754958655338,-460.0,0.00019724,2]
[378682821,1754958655347,-460.0,0.00019724,2]
[378682822,1754958655357,-460.0,0.00019724,2]
[378682823,1754958655366,-204.96227025,0.00019724,2]
[378682824,1754958655375,-460.0,0.00019724,2]
[378682825,1754958655385,-460.0,0.00019724,2]
[378682826,1754958655394,-1892.47,0.00019724,2]
[378682827,1754958655404,-645.56,0.00019724,2]
[378682828,1754958655413,-460.0,0.00019724,2]
[378682829,1754958655422,-460.0,0.00019724,2]
[378682830,1754958655431,-460.0,0.00019724,2]
[378682831,1754958655441,-464.18,0.00019724,2]
[378682832,1754958655450,-516.22,0.00019724,2]
[378682833,1754958655460,-534.78,0.00019724,2]
[378682834,1754958655469,-460.0,0.00019724,2]
[378682835,1754958655478,-460.0,0.00019724,2]
[378682836,1754958655487,-606.33,0.00019724,2]
[378682837,1754958655497,-151.0,0.00019725,2]
[378682838,1754958655506,-151.0,0.00019725,2]
[378682839,1754958655515,-153.719444,0.00019725,2]
[378682840,1754958655525,-151.0,0.00019725,2]
[378682841,1754958655535,-460.0,0.00019725,2]
[378682842,1754958655544,-460.0,0.00019725,2]
[378682843,1754958655554,-460.0,0.00019725,2]
[378682844,1754958655564,-460.0,0.00019725,2]
[378682845,1754958655573,-460.0,0.00019725,2]
[378682846,1754958655583,-460.0,0.00019725,2]
[378682847,1754958655593,-460.0,0.00019725,2]
[378682848,1754958655602,-11710.76,0.00019725,2]
[378682849,1754958655611,-151.0,0.00019725,2]
[378682850,1754958655622,-151.0,0.00019725,2]
[378682851,1754958655631,-2913.42,0.00019725,2]
[378682852,1754958655641,-151.0,0.00019725,2]
[378682853,1754958655651,-151.0,0.00019725,2]
[378682854,1754958655661,-151.0,0.00019725,2]
[378682855,1754958655671,-460.0,0.00019725,2]
[378682856,1754958655680,-460.0,0.00019725,2]
[378682857,1754958655689,-4075.12,0.00019725,2]
[378682858,1754958655699,-460.0,0.00019725,2]
[378682859,1754958655708,-460.0,0.00019725,2]
[378682860,1754958655717,-454.95354849,0.00019725,2]
[378682861,1754958655727,-337.074339,0.00019725,2]
[378682862,1754958655736,-337.074339,0.00019725,2]
[378682863,1754958655749,-460.0,0.00019725,2]
[378682864,1754958655766,-624.53,0.00019725,2]
[378682865,1754958655776,-2733.99,0.00019725,2]
[378682866,1754958655785,-2082.16,0.00019725,2]
[378682867,1754958655796,-1598.56,0.00019725,2]
[378682868,1754958655806,-151.0,0.00019725,2]
[378682869,1754958655816,-151.0,0.00019725,2]
[378682870,1754958655826,-151.0,0.00019725,2]
[378682871,1754958655839,-151.0,0.00019725,2]
[378682872,1754958655848,-616.92,0.00019725,2]
[378682873,1754958655858,-151.0,0.00019725,2]
[378682874,1754958655868,-3931.51,0.00019725,2]
[378682875,1754958655880,-460.0,0.00019725,2]
[378682876,1754958655890,-3664.76,0.00019725,2]
[378682877,1754958655901,-460.0,0.00019725,2]
[378682878,1754958655910,-460.0,0.00019725,2]
[378682879,1754958655920,-151.0,0.00019726,2]
[378682880,1754958655929,-151.0,0.00019726,2]
[378682881,1754958655939,-151.0,0.00019726,2]
[378682882,1754958655948,-151.0,0.00019726,2]
[378682883,1754958655957,-151.0,0.00019726,2]
[378682884,1754958655967,-187.4,0.00019726,2]
[378682885,1754958655976,-151.0,0.00019726,2]
[378682886,1754958655986,-151.0,0.00019726,2]
[378682887,1754958655995,-151.0,0.00019726,2]
[378682888,1754958656004,-151.0,0.00019726,2]
[378682889,1754958656014,-193.228642,0.00019726,2]
[378682890,1754958656024,-179.85611511,0.00019736,2]
[378682891,1754958656033,-672.74793231,0.00019761,2]
[378682892,1754958656044,-156.469909,0.0001977,3]
[378682893,1754958656054,-500.0,0.00019773,2]
[378682894,1754958656064,-155.803505,0.00019773,2]
[378682895,1754958656074,-484.846207,0.00019773,2]
[378682896,1754958656084,-484.846207,0.00019773,2]
[378682897,1754958656093,-151.0,0.00019773,2]
[378682898,1754958656103,-191.22993159,0.00019796,2]
[378682899,1754958656113,-262.0,0.00019802,2]
[378682900,1754958656122,-322.2,0.00019853,2]
[378682901,1754958656132,-854.867305,0.00019863,2]
[378682902,1754958656143,-151.0,0.00019882,2]
[378682903,1754958656152,-1864.0,0.00019882,2]
[378682904,1754958656162,-460.0,0.00019894,2]
[378682905,1754958656171,-460.0,0.00019894,2]
[378682906,1754958656181,-11209.71675314,0.00019895,2]
[378682907,1754958656190,-460.0,0.00019895,2]
[378682908,1754958656200,-460.0,0.00019895,2]
[378682909,1754958656210,-460.0,0.00019895,2]
[378682910,1754958656219,-5060.33,0.00019895,2]
[378682911,1754958656230,-460.0,0.00019895,2]
[378682912,1754958656239,-902.16,0.00019895,2]
[378682913,1754958656248,-460.0,0.00019895,2]
[378682914,1754958656258,-460.0,0.00019895,2]
[378682915,1754958656268,-4463.63,0.00019895,2]
[378682916,1754958656277,-666.74,0.00019895,2]
[378682917,1754958656286,-1427.76,0.00019895,2]
[378682918,1754958656296,-806.38,0.00019895,2]
[378682919,1754958656305,-2579.66,0.00019895,2]
[378682920,1754958656314,-460.0,0.00019895,2]
[378682921,1754958656324,-460.0,0.00019895,2]
[378682922,1754958656333,-1359.88,0.00019895,2]
[378682923,1754958656343,-460.0,0.00019895,2]
[378682924,1754958656352,-3900.76,0.00019895,2]
[378682925,1754958656363,-809.92,0.00019895,2]
[378682926,1754958656372,-460.0,0.00019895,2]
[378682927,1754958656382,-766.99,0.00019895,2]
[378682928,1754958656391,-460.0,0.00019895,2]
[378682929,1754958656401,-460.0,0.00019895,2]
[378682930,1754958656411,-460.0,0.00019895,2]
[378682931,1754958656420,-784.57,0.00019896,2]
[378682932,1754958656430,-460.0,0.00019896,2]
[378682933,1754958656439,-460.0,0.00019896,2]
[378682934,1754958656449,-473.7047145,0.00019896,2]
[378682935,1754958656459,-1221.81,0.00019896,2]
[378682936,1754958656468,-861.66,0.00019896,2]
[378682937,1754958656477,-460.0,0.00019896,2]
[378682938,1754958656488,-273.34242485,0.00019896,2]
[378682939,1754958656497,-460.0,0.00019896,2]
[378682940,1754958656506,-460.0,0.00019896,2]
[378682941,1754958656516,-460.0,0.00019896,2]
[378682942,1754958656525,-460.0,0.00019896,2]
[378682943,1754958656535,-494.87,0.00019896,2]
[378682944,1754958656544,-463.51,0.00019896,2]
[378682945,1754958656553,-460.0,0.00019896,2]
[378682946,1754958656562,-460.0,0.00019896,2]
[378682947,1754958656571,-460.0,0.00019896,2]
[378682948,1754958656581,-976.65,0.00019896,2]
[378682949,1754958656590,-608.91,0.00019896,2]
[378682950,1754958656599,-842.07,0.00019896,2]
[378682951,1754958656609,-460.0,0.00019896,2]
[378682952,1754958656618,-460.0,0.00019896,2]
[378682953,1754958656627,-1459.43,0.00019896,2]
[378682954,1754958656637,-460.0,0.00019896,2]
[378682955,1754958656646,-632.07,0.00019896,2]
[378682956,1754958656655,-1203.9,0.00019896,2]
[378682957,1754958656665,-460.0,0.00019896,2]
[378682958,1754958656675,-460.0,0.00019896,2]
[378682959,1754958656684,-460.0,0.00019896,2]
[378682960,1754958656693,-460.0,0.00019896,2]
[378682961,1754958656702,-622.11,0.00019896,2]
[378682962,1754958656711,-460.0,0.00019896,2]
[378682963,1754958656720,-460.0,0.00019896,2]
[378682964,1754958656730,-765.88,0.00019896,2]
[378682965,1754958656740,-460.0,0.00019896,2]
[378682966,1754958656749,-487.63,0.00019896,2]
[378682967,1754958656759,-1223.37,0.00019896,2]
[378682968,1754958656768,-460.0,0.00019896,2]
[378682969,1754958656778,-460.0,0.00019896,2]
[378682970,1754958656787,-6326.87,0.00019896,2]
[378682971,1754958656799,-460.0,0.00019896,2]
[378682972,1754958656808,-500.41,0.00019896,2]
[378682973,1754958656962,-460.0,0.00019896,2]
[378682974,1754958656972,-1655.31,0.00019896,2]
[378682975,1754958656981,-1264.35,0.00019896,2]
[378682976,1754958656990,-682.46,0.00019896,2]
[378682977,1754958657000,-1137.09,0.00019896,2]
[378682978,1754958657009,-460.0,0.00019896,2]
[378682979,1754958657019,-460.0,0.00019896,2]
[378682980,1754958657029,-2297.14,0.00019896,2]
[378682981,1754958657038,-460.0,0.00019896,2]
[378682982,1754958657051,-561.06,0.00019896,2]
[378682983,1754958657060,-460.0,0.00019896,2]
[378682984,1754958657070,-460.0,0.00019896,2]
[378682985,1754958657079,-460.0,0.00019896,2]
[378682986,1754958657089,-460.0,0.00019896,2]
[378682987,1754958657099,-1985.46,0.00019896,2]
[378682988,1754958657108,-460.0,0.00019896,2]
[378682989,1754958657118,-460.0,0.00019896,2]
[378682990,1754958657127,-460.0,0.00019896,2]
[378682991,1754958657136,-556.97,0.00019896,2]
[378682992,1754958657145,-151.0,0.00019896,2]
[378682993,1754958657155,-151.0,0.00019896,2]
[378682994,1754958657165,-151.0,0.00019896,2]
[378682995,1754958657175,-460.0,0.00019896,2]
[378682996,1754958657185,-835.67,0.00019896,2]
[378682997,1754958657194,-1145.06,0.00019896,2]
[378682998,1754958657204,-1271.75,0.00019896,2]
[378682999,1754958657213,-460.0,0.00019896,2]
[378683000,1754958657223,-1194.86,0.00019896,2]
[378683001,1754958657232,-1636.68,0.00019896,2]
[378683002,1754958657241,-4841.01,0.00019896,2]
[378683003,1754958657250,-460.0,0.00019896,2]
[378683004,1754958657260,-460.0,0.00019896,2]
[378683005,1754958657269,-460.0,0.00019896,2]
[378683006,1754958657279,-460.0,0.00019896,2]
[378683007,1754958657288,-460.0,0.00019896,2]
[378683008,1754958657297,-1017.52,0.00019896,2]
[378683009,1754958657307,-460.0,0.00019896,2]
[378683010,1754958657317,-460.0,0.00019896,2]
[378683011,1754958657327,-460.0,0.00019896,2]
[378683012,1754958657336,-533.26,0.00019896,2]
[378683013,1754958657345,-460.0,0.00019896,2]
[378683014,1754958657354,-984.28,0.00019896,2]
[378683015,1754958657364,-1334.35,0.00019896,2]
[378683016,1754958657373,-3022.21,0.00019896,2]
[378683017,1754958657382,-954.96,0.00019896,2]
[378683018,1754958657392,-3387.85,0.00019896,2]
[378683019,1754958657402,-294.26299,0.00019896,2]
[378683020,1754958657411,-460.0,0.00019897,2]
[378683021,1754958657422,-460.0,0.00019897,2]
[378683022,1754958657432,-460.0,0.00019897,2]
[378683023,1754958657442,-460.0,0.00019897,2]
[378683024,1754958657451,-460.0,0.00019897,2]
[378683025,1754958657460,-460.0,0.00019897,2]
[378683026,1754958657469,-733.37,0.00019897,2]
[378683027,1754958657479,-460.0,0.00019897,2]
[378683028,1754958657488,-526.70689679,0.00019897,2]
[378683029,1754958657497,-460.0,0.00019897,2]
[378683030,1754958657507,-460.0,0.00019897,2]
[378683031,1754958657516,-460.0,0.00019897,2]
[378683032,1754958657525,-529.52169567,0.00019897,2]
[378683033,1754958657535,-491.54401979,0.00019897,2]
[378683034,1754958657544,-460.0,0.00019897,2]
[378683035,1754958657554,-460.0,0.00019897,2]
[378683036,1754958657563,-460.0,0.00019897,2]
[378683037,1754958657573,-460.0,0.00019897,2]
[378683038,1754958657582,-460.0,0.00019897,2]
[378683039,1754958657592,-460.0,0.00019897,2]
[378683040,1754958657601,-460.0,0.00019897,2]
[378683041,1754958657610,-460.0,0.00019897,2]
[378683042,1754958657619,-460.0,0.00019897,2]
[378683043,1754958657629,-460.0,0.00019897,2]
[378683044,1754958657638,-460.0,0.00019897,2]
[378683045,1754958657648,-460.0,0.00019897,2]
[378683046,1754958657657,-460.0,0.00019897,2]
[378683047,1754958657669,-392.03481552,0.00019897,2]
[378683048,1754958657678,-460.0,0.00019897,2]
[378683049,1754958657688,-460.0,0.00019897,2]
[378683050,1754958657698,-460.0,0.00019897,2]
[378683051,1754958657707,-460.0,0.00019897,2]
[378683052,1754958657716,-151.0,0.00019897,2]
[378683053,1754958657725,-460.0,0.00019897,2]
[378683054,1754958657735,-460.0,0.00019897,2]
[378683055,1754958657745,-1306.28,0.00019897,2]
[378683056,1754958657755,-460.0,0.00019897,2]
[378683057,1754958657765,-529.02,0.00019897,2]
[378683058,1754958657774,-460.0,0.00019897,2]
[378683059,1754958657784,-460.0,0.00019897,2]
[378683060,1754958657794,-460.0,0.00019897,2]
[378683061,1754958657806,-770.91,0.00019897,2]
[378683062,1754958657815,-694.52,0.00019897,2]
[378683063,1754958657824,-723.93,0.00019897,2]
[378683064,1754958657833,-460.0,0.00019897,2]
[378683065,1754958657843,-460.0,0.00019897,2]
[378683066,1754958657852,-337.79714581,0.00019897,2]
[378683067,1754958657862,-460.0,0.00019897,2]
[378683068,1754958657873,-460.0,0.00019897,2]
[378683069,1754958657883,-460.0,0.00019897,2]
[378683070,1754958657892,-460.0,0.00019897,2]
[378683071,1754958657901,-460.0,0.00019897,2]
[378683072,1754958657911,-460.0,0.00019897,2]
[378683073,1754958657920,-516.85,0.00019897,2]
[378683074,1754958657929,-348.51575425,0.00019897,2]
[378683075,1754958657938,-460.0,0.00019897,2]
[378683076,1754958657948,-465.65726199,0.00019897,2]
[378683077,1754958657957,-687.7,0.00019897,2]
[378683078,1754958657966,-478.38,0.00019897,2]
[378683079,1754958657976,-582.02,0.00019897,2]
[378683080,1754958657985,-278.10968962,0.00019897,2]
[378683081,1754958657995,-460.0,0.00019897,2]
[378683082,1754958658004,-151.0,0.00019897,2]
[378683083,1754958658013,-460.0,0.00019897,2]
[378683084,1754958658022,-151.0,0.00019897,2]
[378683085,1754958658031,-641.5841,0.00019897,2]
[378683086,1754958658040,-562.62,0.00019897,2]
[378683087,1754958658050,-641.5841,0.00019897,2]
[378683088,1754958658061,-460.0,0.00019897,2]
[378683089,1754958658070,-151.0,0.00019897,2]
[378683090,1754958658080,-460.0,0.00019897,2]
[378683091,1754958658089,-460.0,0.00019897,2]
[378683092,1754958658098,-460.0,0.00019897,2]
[378683093,1754958658108,-460.0,0.00019897,2]
[378683094,1754958658117,-460.0,0.00019897,2]
[378683095,1754958658126,-460.0,0.00019897,2]
[378683096,1754958658135,-460.0,0.00019897,2]
[378683097,1754958658145,-460.0,0.00019897,2]
[378683098,1754958658154,-460.0,0.00019897,2]
[378683099,1754958658163,-549.14,0.00019897,2]
[378683100,1754958658173,-460.0,0.00019897,2]
[378683101,1754958658183,-575.56,0.00019897,2]
[378683102,1754958658192,-460.0,0.00019897,2]
[378683103,1754958658202,-460.0,0.00019897,2]
[378683104,1754958658212,-460.0,0.00019897,2]
[378683105,1754958658222,-2266.72,0.00019897,2]
[378683106,1754958658232,-554.28,0.00019897,2]
[378683107,1754958658242,-460.0,0.00019897,2]
[378683108,1754958658252,-1298.74,0.00019897,2]